[Event "November 21 Late 2023"]
[Site "https://www.chess.com"]
[Date "2023.11.21"]
[Round "1"]
[White "Blackwhite017"]
[Black "Hajiyev, Kanan"]
[Result "0-1"]
[Board "166"]
[TimeControl "180+1"]
[BlackFideId "13404148"]
[WhiteElo "2035"]
[BlackElo "2102"]
[BlackTeam "AZE"]
[WhiteClock "0:00:00"]
[BlackClock "0:00:28"]

1. e4 {[%clk 0:02:57]}  c6 {[%clk 0:02:59]} 2. Nf3 {[%clk 0:02:57]}  d5 {[%clk 0:03:00]} 3. exd5 {[%clk 0:02:57]}  cxd5 {[%clk 0:03:01]} 4. Ne5 {[%clk 0:02:57]}  Nc6 {[%clk 0:03:01]} 5. d4 {[%clk 0:02:57]}  Nf6 {[%clk 0:02:58]} 6. Bb5 {[%clk 0:02:57]}  Bd7 {[%clk 0:02:58]} 7. Nxd7 {[%clk 0:02:56]}  Qxd7 {[%clk 0:02:59]} 8. c3 {[%clk 0:02:55]}  e6 {[%clk 0:03:00]} 9. O-O {[%clk 0:02:54]}  Bd6 {[%clk 0:03:00]} 10. Qe2 {[%clk 0:02:52]}  O-O {[%clk 0:03:00]} 11. Bg5 {[%clk 0:02:52]}  Ne4 {[%clk 0:02:59]} 12. Bh4 {[%clk 0:02:51]}  Qc7 {[%clk 0:02:59]} 13. Bg3 {[%clk 0:02:38]}  a6 {[%clk 0:02:48]} 14. Bd3 {[%clk 0:02:36]}  Bxg3 {[%clk 0:01:53]} 15. hxg3 {[%clk 0:02:28]}  f5 {[%clk 0:01:54]} 16. Nd2 {[%clk 0:02:20]}  Rf6 {[%clk 0:01:50]} 17. Rfe1 {[%clk 0:00:46]}  Raf8 {[%clk 0:01:39]} 18. Nf1 {[%clk 0:00:40]}  Rh6 {[%clk 0:01:37]} 19. Bxe4 {[%clk 0:00:20]}  fxe4 {[%clk 0:01:37]} 20. f3 {[%clk 0:00:16]}  exf3 {[%clk 0:01:21]} 21. gxf3 {[%clk 0:00:17]}  Qf7 {[%clk 0:01:17]} 22. Qg2 {[%clk 0:00:11]}  Qxf3 {[%clk 0:01:07]} 23. Qxf3 {[%clk 0:00:11]}  Rxf3 {[%clk 0:01:08]} 24. Kg2 {[%clk 0:00:11]}  Rf7 {[%clk 0:01:03]} 25. Re2 {[%clk 0:00:10]}  Rhf6 {[%clk 0:00:56]} 26. Rae1 {[%clk 0:00:10]}  h5 {[%clk 0:00:35]} 27. Nd2 {[%clk 0:00:09]}  Kh7 {[%clk 0:00:29]} 28. Rxe6 {[%clk 0:00:00]}  Rf2+ {[%clk 0:00:28]} 0-1

[Event "November 21 Late 2023"]
[Site "https://www.chess.com"]
[Date "2023.11.21"]
[Round "1"]
[White "Seletsky, Grigory"]
[Black "Saim, Mohamed Ilias"]
[Result "0-1"]
[Board "173"]
[TimeControl "180+1"]
[WhiteFideId "14112191"]
[BlackFideId "7900465"]
[WhiteElo "2482"]
[BlackElo "2063"]
[WhiteTeam "UKR"]
[BlackTeam "ALG"]
[WhiteClock "0:00:00"]
[BlackClock "0:00:05"]

1. b3 {[%clk 0:02:57]}  Nf6 {[%clk 0:02:58]} 2. Bb2 {[%clk 0:02:57]}  c5 {[%clk 0:02:54]} 3. Nf3 {[%clk 0:02:52]}  Nc6 {[%clk 0:02:54]} 4. c4 {[%clk 0:02:49]}  e6 {[%clk 0:02:49]} 5. e3 {[%clk 0:02:47]}  d5 {[%clk 0:02:49]} 6. d3 {[%clk 0:02:46]}  Be7 {[%clk 0:02:46]} 7. Be2 {[%clk 0:02:46]}  O-O {[%clk 0:02:42]} 8. O-O {[%clk 0:02:46]}  b6 {[%clk 0:02:38]} 9. a3 {[%clk 0:02:45]}  Bb7 {[%clk 0:02:38]} 10. Qc2 {[%clk 0:02:46]}  Rc8 {[%clk 0:02:36]} 11. Nbd2 {[%clk 0:02:46]}  Qc7 {[%clk 0:02:31]} 12. e4 {[%clk 0:02:41]}  dxe4 {[%clk 0:02:27]} 13. dxe4 {[%clk 0:02:40]}  Rfd8 {[%clk 0:02:24]} 14. e5 {[%clk 0:02:36]}  Ng4 {[%clk 0:02:17]} 15. Qc3 {[%clk 0:02:22]}  Nd4 {[%clk 0:02:07]} 16. Nxd4 {[%clk 0:02:18]}  cxd4 {[%clk 0:02:08]} 17. Qg3 {[%clk 0:02:13]}  Nxe5 {[%clk 0:02:05]} 18. f4 {[%clk 0:02:02]}  Ng6 {[%clk 0:01:51]} 19. Bd3 {[%clk 0:01:56]}  f5 {[%clk 0:01:14]} 20. Rae1 {[%clk 0:01:53]}  Bh4 {[%clk 0:01:14]} 21. Qh3 {[%clk 0:01:46]}  Bxe1 {[%clk 0:01:15]} 22. Rxe1 {[%clk 0:01:46]}  Nxf4 {[%clk 0:01:12]} 23. Qg3 {[%clk 0:01:47]}  Nxd3 {[%clk 0:00:58]} 24. Qxd3 {[%clk 0:01:47]}  Re8 {[%clk 0:00:54]} 25. b4 {[%clk 0:01:32]}  e5 {[%clk 0:00:51]} 26. Qxf5 {[%clk 0:01:30]}  Qf7 {[%clk 0:00:50]} 27. Qg4 {[%clk 0:01:21]}  Qg6 {[%clk 0:00:49]} 28. Qxg6 {[%clk 0:01:13]}  hxg6 {[%clk 0:00:50]} 29. Nf3 {[%clk 0:00:57]}  Rxc4 {[%clk 0:00:48]} 30. Nxd4 {[%clk 0:00:56]}  Rd8 {[%clk 0:00:36]} 31. Nf3 {[%clk 0:00:47]}  Rc2 {[%clk 0:00:32]} 32. Bxe5 {[%clk 0:00:44]}  Bxf3 {[%clk 0:00:31]} 33. gxf3 {[%clk 0:00:44]}  Re8 {[%clk 0:00:29]} 34. f4 {[%clk 0:00:40]}  g5 {[%clk 0:00:29]} 35. fxg5 {[%clk 0:00:37]}  Ra2 {[%clk 0:00:25]} 36. Re3 {[%clk 0:00:36]}  Ra1+ {[%clk 0:00:20]} 37. Kg2 {[%clk 0:00:35]}  Rd1 {[%clk 0:00:19]} 38. Kf3 {[%clk 0:00:31]}  Rd5 {[%clk 0:00:19]} 39. Kf4 {[%clk 0:00:31]}  Kf7 {[%clk 0:00:17]} 40. Kf5 {[%clk 0:00:28]}  g6+ {[%clk 0:00:17]} 41. Kf4 {[%clk 0:00:28]}  Rd1 {[%clk 0:00:15]} 42. h3 {[%clk 0:00:25]}  Rf1+ {[%clk 0:00:15]} 43. Kg4 {[%clk 0:00:18]}  Rf5 {[%clk 0:00:14]} 44. Bd4 {[%clk 0:00:16]}  Rxe3 {[%clk 0:00:15]} 45. Bxe3 {[%clk 0:00:16]}  Rd5 {[%clk 0:00:14]} 46. a4 {[%clk 0:00:14]}  Rd3 {[%clk 0:00:14]} 47. Kf3 {[%clk 0:00:12]}  Ra3 {[%clk 0:00:13]} 48. a5 {[%clk 0:00:13]}  bxa5 {[%clk 0:00:13]} 49. bxa5 {[%clk 0:00:13]}  Rxa5 {[%clk 0:00:13]} 50. Ke4 {[%clk 0:00:14]}  Ra2 {[%clk 0:00:13]} 51. Kd5 {[%clk 0:00:12]}  Ra3 {[%clk 0:00:11]} 52. Bc5 {[%clk 0:00:11]}  Ra5 {[%clk 0:00:09]} 53. Kc4 {[%clk 0:00:08]}  a6 {[%clk 0:00:09]} 54. Kb4 {[%clk 0:00:08]}  Rb5+ {[%clk 0:00:09]} 55. Kc4 {[%clk 0:00:09]}  Rb1 {[%clk 0:00:09]} 56. Bb4 {[%clk 0:00:07]}  Ke6 {[%clk 0:00:07]} 57. Kc5 {[%clk 0:00:05]}  Kf5 {[%clk 0:00:07]} 58. Bd2 {[%clk 0:00:06]}  Rb5+ {[%clk 0:00:06]} 59. Kc4 {[%clk 0:00:04]}  Ke4 {[%clk 0:00:04]} 60. h4 {[%clk 0:00:03]}  Kf5 {[%clk 0:00:04]} 61. Be3 {[%clk 0:00:01]}  Kg4 {[%clk 0:00:04]} 62. Bf2 {[%clk 0:00:01]}  Rb2 {[%clk 0:00:05]} 63. Bd4 {[%clk 0:00:01]}  Rb5 {[%clk 0:00:05]} 64. Bc3 {[%clk 0:00:01]}  Kxh4 {[%clk 0:00:04]} 65. Bf6 {[%clk 0:00:01]}  Kg4 {[%clk 0:00:04]} 66. Kd4 {[%clk 0:00:01]}  Rxg5 {[%clk 0:00:04]} 67. Kc4 {[%clk 0:00:01]}  Rf5 {[%clk 0:00:04]} 68. Be7 {[%clk 0:00:01]}  Rb5 {[%clk 0:00:05]} 69. Kd4 {[%clk 0:00:00]}  Kf4 {[%clk 0:00:05]} 0-1

[Event "November 21 Late 2023"]
[Site "https://www.chess.com"]
[Date "2023.11.21"]
[Round "1"]
[White "Burke, Paul"]
[Black "Horak, Martin"]
[Result "0-1"]
[Board "174"]
[TimeControl "180+1"]
[WhiteFideId "2605767"]
[BlackFideId "367095"]
[WhiteElo "1848"]
[BlackElo "2091"]
[WhiteTeam "CAN"]
[BlackTeam "CZE"]
[WhiteClock "0:00:00"]
[BlackClock "0:00:08"]

1. e4 {[%clk 0:02:59]}  c5 {[%clk 0:02:59]} 2. Nf3 {[%clk 0:02:57]}  Nc6 {[%clk 0:03:00]} 3. d4 {[%clk 0:02:57]}  cxd4 {[%clk 0:03:01]} 4. c3 {[%clk 0:02:57]}  dxc3 {[%clk 0:02:59]} 5. Nxc3 {[%clk 0:02:57]}  d6 {[%clk 0:02:59]} 6. Bc4 {[%clk 0:02:57]}  a6 {[%clk 0:02:59]} 7. O-O {[%clk 0:02:56]}  Nf6 {[%clk 0:03:00]} 8. h3 {[%clk 0:02:54]}  e6 {[%clk 0:02:58]} 9. Qe2 {[%clk 0:02:54]}  Qc7 {[%clk 0:02:54]} 10. Rd1 {[%clk 0:02:54]}  Be7 {[%clk 0:02:54]} 11. Bg5 {[%clk 0:02:54]}  O-O {[%clk 0:02:50]} 12. Rac1 {[%clk 0:02:53]}  Qb8 {[%clk 0:02:50]} 13. a3 {[%clk 0:02:52]}  b5 {[%clk 0:02:45]} 14. Ba2 {[%clk 0:02:48]}  Bb7 {[%clk 0:02:45]} 15. Bb1 {[%clk 0:02:47]}  Rd8 {[%clk 0:02:36]} 16. Qc2 {[%clk 0:02:33]}  Ne5 {[%clk 0:01:59]} 17. Nd4 {[%clk 0:02:28]}  Ng6 {[%clk 0:01:49]} 18. Be3 {[%clk 0:02:16]}  d5 {[%clk 0:01:33]} 19. exd5 {[%clk 0:02:02]}  Nxd5 {[%clk 0:01:34]} 20. Nxd5 {[%clk 0:01:41]}  Bxd5 {[%clk 0:01:33]} 21. b4 {[%clk 0:01:35]}  Qb7 {[%clk 0:01:30]} 22. f3 {[%clk 0:01:30]}  Rac8 {[%clk 0:01:30]} 23. Qf2 {[%clk 0:01:26]}  Bf6 {[%clk 0:01:27]} 24. Rxc8 {[%clk 0:01:23]}  Rxc8 {[%clk 0:01:26]} 25. Bxg6 {[%clk 0:01:21]}  hxg6 {[%clk 0:01:25]} 26. Ne2 {[%clk 0:01:18]}  Rc2 {[%clk 0:01:22]} 27. Rd2 {[%clk 0:01:09]}  Qc7 {[%clk 0:01:16]} 28. Rxc2 {[%clk 0:01:05]}  Qxc2 {[%clk 0:01:15]} 29. Nd4 {[%clk 0:01:03]}  Qb1+ {[%clk 0:00:56]} 30. Kh2 {[%clk 0:01:02]}  Be5+ {[%clk 0:00:51]} 31. g3 {[%clk 0:01:02]}  Bd6 {[%clk 0:00:39]} 32. Qd2 {[%clk 0:00:45]}  Qf1 {[%clk 0:00:31]} 33. Qf2 {[%clk 0:00:42]}  Qd3 {[%clk 0:00:31]} 34. Nc2 {[%clk 0:00:35]}  Bb3 {[%clk 0:00:17]} 35. Ne1 {[%clk 0:00:31]}  Qb1 {[%clk 0:00:13]} 36. Qd2 {[%clk 0:00:28]}  Be7 {[%clk 0:00:12]} 37. Bf2 {[%clk 0:00:21]}  Bd5 {[%clk 0:00:12]} 38. Qf4 {[%clk 0:00:17]}  Qa2 {[%clk 0:00:10]} 39. Kg1 {[%clk 0:00:15]}  Qxa3 {[%clk 0:00:10]} 40. Qb8+ {[%clk 0:00:14]}  Kh7 {[%clk 0:00:10]} 41. Qf4 {[%clk 0:00:13]}  Qxb4 {[%clk 0:00:10]} 42. Qe3 {[%clk 0:00:12]}  a5 {[%clk 0:00:08]} 43. Nd3 {[%clk 0:00:12]}  Qc3 {[%clk 0:00:08]} 44. Qe2 {[%clk 0:00:00]}  Bc4 {[%clk 0:00:08]} 0-1

[Event "November 21 Late 2023"]
[Site "https://www.chess.com"]
[Date "2023.11.21"]
[Round "1"]
[White "NigelDwarf"]
[Black "DAVIDHDZSTS"]
[Result "1-0"]
[Board "175"]
[TimeControl "180+1"]
[WhiteElo "2515"]
[BlackElo "1834"]
[WhiteClock "0:01:36"]
[BlackClock "0:01:13"]

1. Nf3 {[%clk 0:02:19]}  e6 {[%clk 0:02:59]} 2. c4 {[%clk 0:02:15]}  Nf6 {[%clk 0:02:58]} 3. Nc3 {[%clk 0:02:15]}  d5 {[%clk 0:02:58]} 4. d4 {[%clk 0:02:15]}  Be7 {[%clk 0:02:56]} 5. Bf4 {[%clk 0:02:14]}  Nbd7 {[%clk 0:02:53]} 6. e3 {[%clk 0:02:12]}  c6 {[%clk 0:02:42]} 7. Qc2 {[%clk 0:02:11]}  O-O {[%clk 0:02:37]} 8. Bd3 {[%clk 0:02:08]}  g6 {[%clk 0:02:30]} 9. h4 {[%clk 0:02:06]}  Nh5 {[%clk 0:02:27]} 10. Bh6 {[%clk 0:02:05]}  Re8 {[%clk 0:02:26]} 11. g4 {[%clk 0:02:05]}  Ng7 {[%clk 0:02:26]} 12. h5 {[%clk 0:02:05]}  Bf8 {[%clk 0:02:12]} 13. Ng5 {[%clk 0:02:01]}  f5 {[%clk 0:02:01]} 14. O-O-O {[%clk 0:01:48]}  dxc4 {[%clk 0:01:57]} 15. Bxc4 {[%clk 0:01:46]}  Nb6 {[%clk 0:01:49]} 16. Bd3 {[%clk 0:01:42]}  Be7 {[%clk 0:01:31]} 17. Nxh7 {[%clk 0:01:38]}  Kxh7 {[%clk 0:01:28]} 18. hxg6+ {[%clk 0:01:38]}  Kxg6 {[%clk 0:01:28]} 19. gxf5+ {[%clk 0:01:38]}  exf5 {[%clk 0:01:29]} 20. Rdg1+ {[%clk 0:01:37]}  Kf7 {[%clk 0:01:13]} 21. Rxg7+ {[%clk 0:01:36]}  Ke6 {[%clk 0:01:13]} 22. Bxf5+ {[%clk 0:01:36]}  Kd6 {[%clk 0:01:13]} 23. Bf4# {[%clk 0:01:36]} 1-0

[Event "November 21 Late 2023"]
[Site "https://www.chess.com"]
[Date "2023.11.21"]
[Round "1"]
[White "Vargas, Mauricio"]
[Black "Petukhov, Dmitry"]
[Result "0-1"]
[Board "176"]
[TimeControl "180+1"]
[WhiteFideId "4404572"]
[BlackFideId "4142748"]
[WhiteElo "1988"]
[BlackElo "2269"]
[WhiteTeam "COL"]
[BlackTeam "RUS"]
[WhiteClock "0:00:00"]
[BlackClock "0:01:02"]

1. e4 {[%clk 0:02:55]}  c5 {[%clk 0:02:59]} 2. Nc3 {[%clk 0:02:55]}  d6 {[%clk 0:02:59]} 3. f4 {[%clk 0:02:56]}  Nc6 {[%clk 0:02:59]} 4. Nf3 {[%clk 0:02:57]}  e6 {[%clk 0:02:58]} 5. Bb5 {[%clk 0:02:57]}  Bd7 {[%clk 0:02:57]} 6. Bxc6 {[%clk 0:02:58]}  Bxc6 {[%clk 0:02:57]} 7. O-O {[%clk 0:02:59]}  Nf6 {[%clk 0:02:55]} 8. d3 {[%clk 0:02:59]}  Be7 {[%clk 0:02:55]} 9. Qe1 {[%clk 0:02:59]}  O-O {[%clk 0:02:55]} 10. h3 {[%clk 0:02:59]}  d5 {[%clk 0:02:46]} 11. e5 {[%clk 0:02:59]}  Nd7 {[%clk 0:02:46]} 12. Qg3 {[%clk 0:02:47]}  Kh8 {[%clk 0:02:46]} 13. Qh2 {[%clk 0:02:35]}  f5 {[%clk 0:02:41]} 14. g4 {[%clk 0:02:18]}  d4 {[%clk 0:02:36]} 15. Ne2 {[%clk 0:02:09]}  g5 {[%clk 0:02:19]} 16. Nxg5 {[%clk 0:01:59]}  Bxg5 {[%clk 0:02:18]} 17. fxg5 {[%clk 0:01:59]}  fxg4 {[%clk 0:02:19]} 18. hxg4 {[%clk 0:01:54]}  Rxf1+ {[%clk 0:02:18]} 19. Kxf1 {[%clk 0:01:53]}  Qf8+ {[%clk 0:02:19]} 20. Kg1 {[%clk 0:01:50]}  Qf3 {[%clk 0:02:16]} 21. g6 {[%clk 0:01:43]}  Qxg4+ {[%clk 0:02:14]} 22. Kf2 {[%clk 0:01:13]}  Rf8+ {[%clk 0:02:11]} 23. Ke1 {[%clk 0:01:11]}  Qxg6 {[%clk 0:01:56]} 24. Bh6 {[%clk 0:01:00]}  Rf5 {[%clk 0:01:44]} 25. Bf4 {[%clk 0:00:48]}  Bf3 {[%clk 0:01:33]} 26. Bg3 {[%clk 0:00:28]}  Qg4 {[%clk 0:01:30]} 27. Nf4 {[%clk 0:00:15]}  Nxe5 {[%clk 0:01:24]} 28. Nxe6 {[%clk 0:00:08]}  Bd5 {[%clk 0:01:22]} 29. Bxe5+ {[%clk 0:00:07]}  Kg8 {[%clk 0:01:19]} 30. Qg3 {[%clk 0:00:05]}  Qxg3+ {[%clk 0:01:17]} 31. Bxg3 {[%clk 0:00:05]}  Bxe6 {[%clk 0:01:17]} 32. Ke2 {[%clk 0:00:04]}  Kf7 {[%clk 0:01:03]} 33. Rh1 {[%clk 0:00:00]}  h5 {[%clk 0:01:02]} 0-1

[Event "November 21 Late 2023"]
[Site "https://www.chess.com"]
[Date "2023.11.21"]
[Round "2"]
[White "MKlose11"]
[Black "Carlsen, Magnus"]
[Result "1/2-1/2"]
[Board "1"]
[TimeControl "180+1"]
[BlackFideId "1503014"]
[WhiteElo "2640"]
[BlackElo "2887"]
[BlackTeam "NOR"]
[WhiteClock "0:00:27"]
[BlackClock "0:01:18"]

1. e4 {[%clk 0:03:00]}  a6 {[%clk 0:02:59]} 2. d4 {[%clk 0:02:47]}  Nc6 {[%clk 0:02:59]} 3. Bd3 {[%clk 0:02:48]}  d6 {[%clk 0:02:54]} 4. c3 {[%clk 0:02:48]}  e5 {[%clk 0:02:52]} 5. Nf3 {[%clk 0:02:48]}  Bg4 {[%clk 0:02:51]} 6. Be3 {[%clk 0:02:45]}  g6 {[%clk 0:02:51]} 7. h3 {[%clk 0:02:44]}  Bxf3 {[%clk 0:02:51]} 8. Qxf3 {[%clk 0:02:44]}  Bh6 {[%clk 0:02:51]} 9. O-O {[%clk 0:02:37]}  Bxe3 {[%clk 0:02:50]} 10. Qxe3 {[%clk 0:02:38]}  Qf6 {[%clk 0:02:49]} 11. d5 {[%clk 0:02:28]}  Nb8 {[%clk 0:02:49]} 12. f4 {[%clk 0:02:29]}  Nd7 {[%clk 0:02:44]} 13. Nd2 {[%clk 0:02:28]}  Qe7 {[%clk 0:02:44]} 14. a4 {[%clk 0:02:16]}  exf4 {[%clk 0:02:43]} 15. Rxf4 {[%clk 0:02:15]}  Ngf6 {[%clk 0:02:44]} 16. Raf1 {[%clk 0:02:14]}  O-O {[%clk 0:02:41]} 17. Qd4 {[%clk 0:02:12]}  Nh5 {[%clk 0:02:41]} 18. R4f2 {[%clk 0:02:08]}  Ne5 {[%clk 0:02:41]} 19. Nc4 {[%clk 0:01:55]}  Nxc4 {[%clk 0:02:35]} 20. Qxc4 {[%clk 0:01:51]}  a5 {[%clk 0:02:35]} 21. Rf3 {[%clk 0:01:46]}  f6 {[%clk 0:02:28]} 22. Qd4 {[%clk 0:01:39]}  g5 {[%clk 0:02:16]} 23. Bc2 {[%clk 0:01:21]}  Nf4 {[%clk 0:02:15]} 24. Kh2 {[%clk 0:01:10]}  Rae8 {[%clk 0:02:14]} 25. g3 {[%clk 0:01:07]}  Ng6 {[%clk 0:02:13]} 26. Rxf6 {[%clk 0:01:06]}  Rxf6 {[%clk 0:02:11]} 27. Qxf6 {[%clk 0:01:03]}  Qxf6 {[%clk 0:02:11]} 28. Rxf6 {[%clk 0:01:04]}  Kg7 {[%clk 0:02:11]} 29. Rf5 {[%clk 0:01:03]}  h6 {[%clk 0:02:12]} 30. Kg2 {[%clk 0:01:01]}  Ne5 {[%clk 0:02:13]} 31. b3 {[%clk 0:01:00]}  Rb8 {[%clk 0:02:10]} 32. c4 {[%clk 0:01:00]}  Kg6 {[%clk 0:02:08]} 33. Kf2 {[%clk 0:00:59]}  h5 {[%clk 0:02:07]} 34. h4 {[%clk 0:00:51]}  gxh4 {[%clk 0:02:05]} 35. gxh4 {[%clk 0:00:51]}  b6 {[%clk 0:02:04]} 36. Bd1 {[%clk 0:00:49]}  Rh8 {[%clk 0:02:02]} 37. Ke3 {[%clk 0:00:48]}  Kg7 {[%clk 0:01:57]} 38. Rxh5 {[%clk 0:00:46]}  Rxh5 {[%clk 0:01:45]} 39. Bxh5 {[%clk 0:00:47]}  Kf6 {[%clk 0:01:46]} 40. Be2 {[%clk 0:00:46]}  Ng6 {[%clk 0:01:43]} 41. h5 {[%clk 0:00:44]}  Ne5 {[%clk 0:01:44]} 42. Kf4 {[%clk 0:00:43]}  Nd7 {[%clk 0:01:44]} 43. h6 {[%clk 0:00:38]}  Nc5 {[%clk 0:01:37]} 44. Bd1 {[%clk 0:00:33]}  Kg6 {[%clk 0:01:35]} 45. Bc2 {[%clk 0:00:28]}  Kxh6 {[%clk 0:01:34]} 46. e5 {[%clk 0:00:28]}  Kg7 {[%clk 0:01:33]} 47. e6 {[%clk 0:00:26]}  Kf6 {[%clk 0:01:33]} 48. Ke3 {[%clk 0:00:26]}  Ke7 {[%clk 0:01:30]} 49. Kd4 {[%clk 0:00:26]}  Kf6 {[%clk 0:01:29]} 50. Ke3 {[%clk 0:00:26]}  Na6 {[%clk 0:01:29]} 51. Kd4 {[%clk 0:00:26]}  Ke7 {[%clk 0:01:28]} 52. Ke3 {[%clk 0:00:27]}  Nb4 {[%clk 0:01:27]} 53. Bb1 {[%clk 0:00:26]}  Na6 {[%clk 0:01:25]} 54. Kd4 {[%clk 0:00:26]}  Nc5 {[%clk 0:01:25]} 55. Bc2 {[%clk 0:00:27]}  Kf6 {[%clk 0:01:22]} 56. Bd1 {[%clk 0:00:27]}  Na6 {[%clk 0:01:18]} 57. Bc2 {[%clk 0:00:27]}  Nc5 {[%clk 0:01:18]} 1/2-1/2

[Event "November 21 Late 2023"]
[Site "https://www.chess.com"]
[Date "2023.11.21"]
[Round "2"]
[White "Nakamura, Hikaru"]
[Black "Vasquez Vargas, Henry Richard"]
[Result "1-0"]
[Board "2"]
[TimeControl "180+1"]
[WhiteFideId "2016192"]
[BlackFideId "3836878"]
[WhiteElo "2874"]
[BlackElo "2012"]
[WhiteTeam "USA"]
[BlackTeam "PER"]
[WhiteClock "0:01:00"]
[BlackClock "0:00:12"]

1. Nf3 {[%clk 0:02:37]}  Nf6 {[%clk 0:02:58]} 2. b3 {[%clk 0:02:33]}  e6 {[%clk 0:02:57]} 3. Bb2 {[%clk 0:02:33]}  a5 {[%clk 0:02:57]} 4. a3 {[%clk 0:02:32]}  d5 {[%clk 0:02:56]} 5. e3 {[%clk 0:02:32]}  Be7 {[%clk 0:02:56]} 6. c4 {[%clk 0:02:31]}  O-O {[%clk 0:02:55]} 7. cxd5 {[%clk 0:02:30]}  exd5 {[%clk 0:02:53]} 8. d4 {[%clk 0:02:30]}  Bg4 {[%clk 0:02:51]} 9. Nbd2 {[%clk 0:02:30]}  c6 {[%clk 0:02:46]} 10. Bd3 {[%clk 0:02:30]}  Nbd7 {[%clk 0:02:46]} 11. Qc2 {[%clk 0:02:29]}  h6 {[%clk 0:02:45]} 12. h3 {[%clk 0:02:29]}  Bxf3 {[%clk 0:02:45]} 13. Nxf3 {[%clk 0:02:25]}  Bd6 {[%clk 0:02:43]} 14. Ne5 {[%clk 0:02:20]}  Re8 {[%clk 0:02:15]} 15. f4 {[%clk 0:02:19]}  Ne4 {[%clk 0:02:11]} 16. Bxe4 {[%clk 0:02:17]}  dxe4 {[%clk 0:02:12]} 17. O-O {[%clk 0:02:09]}  f5 {[%clk 0:01:55]} 18. Qc4+ {[%clk 0:02:05]}  Kh7 {[%clk 0:01:55]} 19. Qf7 {[%clk 0:02:06]}  Bxe5 {[%clk 0:01:42]} 20. dxe5 {[%clk 0:01:47]}  Rf8 {[%clk 0:01:41]} 21. Qc4 {[%clk 0:01:41]}  Nb6 {[%clk 0:01:41]} 22. Qc5 {[%clk 0:01:40]}  Nd5 {[%clk 0:01:41]} 23. Rad1 {[%clk 0:01:39]}  Qe8 {[%clk 0:01:36]} 24. Kh2 {[%clk 0:01:37]}  Qe6 {[%clk 0:01:31]} 25. Qc4 {[%clk 0:01:30]}  Rfe8 {[%clk 0:01:26]} 26. Rfe1 {[%clk 0:01:29]}  a4 {[%clk 0:01:15]} 27. g4 {[%clk 0:01:27]}  g6 {[%clk 0:01:10]} 28. b4 {[%clk 0:01:21]}  fxg4 {[%clk 0:01:05]} 29. Qxe4 {[%clk 0:01:21]}  gxh3 {[%clk 0:01:05]} 30. Rg1 {[%clk 0:01:20]}  Qf5 {[%clk 0:01:02]} 31. Qxf5 {[%clk 0:01:14]}  gxf5 {[%clk 0:01:02]} 32. Bd4 {[%clk 0:01:15]}  Nc7 {[%clk 0:00:48]} 33. e4 {[%clk 0:01:09]}  Ne6 {[%clk 0:00:43]} 34. exf5 {[%clk 0:01:08]}  Nxf4 {[%clk 0:00:43]} 35. e6 {[%clk 0:01:08]}  Rg8 {[%clk 0:00:44]} 36. Be5 {[%clk 0:01:03]}  Nd5 {[%clk 0:00:29]} 37. f6 {[%clk 0:01:03]}  Rg5 {[%clk 0:00:24]} 38. Rxg5 {[%clk 0:01:03]}  hxg5 {[%clk 0:00:25]} 39. f7 {[%clk 0:01:00]}  Kg6 {[%clk 0:00:12]} 40. Rf1 {[%clk 0:01:00]} 1-0

[Event "November 21 Late 2023"]
[Site "https://www.chess.com"]
[Date "2023.11.21"]
[Round "2"]
[White "Nihal Sarin"]
[Black "Koksal, Ege"]
[Result "1-0"]
[Board "4"]
[TimeControl "180+1"]
[WhiteFideId "25092340"]
[BlackFideId "6317626"]
[WhiteElo "2689"]
[BlackElo "2230"]
[WhiteTeam "IND"]
[BlackTeam "TUR"]
[WhiteClock "0:00:17"]
[BlackClock "0:00:00"]

1. c4 {[%clk 0:02:59]}  c6 {[%clk 0:02:43]} 2. Nf3 {[%clk 0:02:56]}  d5 {[%clk 0:02:42]} 3. e3 {[%clk 0:02:57]}  Nf6 {[%clk 0:02:42]} 4. Nc3 {[%clk 0:02:57]}  Bg4 {[%clk 0:02:41]} 5. cxd5 {[%clk 0:02:53]}  Nxd5 {[%clk 0:02:41]} 6. Qb3 {[%clk 0:02:50]}  Qb6 {[%clk 0:02:42]} 7. Nxd5 {[%clk 0:02:31]}  Qxb3 {[%clk 0:02:42]} 8. axb3 {[%clk 0:02:22]}  cxd5 {[%clk 0:02:41]} 9. Ne5 {[%clk 0:02:23]}  Bd7 {[%clk 0:02:39]} 10. d4 {[%clk 0:02:17]}  Nc6 {[%clk 0:02:35]} 11. Nxd7 {[%clk 0:01:51]}  Kxd7 {[%clk 0:02:36]} 12. Bd2 {[%clk 0:01:51]}  e6 {[%clk 0:02:36]} 13. Bd3 {[%clk 0:01:51]}  Bb4 {[%clk 0:02:34]} 14. Bc3 {[%clk 0:01:51]}  Rhc8 {[%clk 0:02:26]} 15. Ke2 {[%clk 0:01:51]}  a6 {[%clk 0:02:24]} 16. Rhc1 {[%clk 0:01:50]}  g6 {[%clk 0:02:21]} 17. g4 {[%clk 0:01:49]}  Bd6 {[%clk 0:02:14]} 18. h4 {[%clk 0:01:49]}  h6 {[%clk 0:02:01]} 19. Rh1 {[%clk 0:01:45]}  Rc7 {[%clk 0:01:49]} 20. f4 {[%clk 0:01:44]}  Be7 {[%clk 0:01:34]} 21. Raf1 {[%clk 0:01:43]}  Rg8 {[%clk 0:01:18]} 22. f5 {[%clk 0:01:29]}  gxf5 {[%clk 0:01:17]} 23. gxf5 {[%clk 0:01:29]}  Rg2+ {[%clk 0:01:16]} 24. Kf3 {[%clk 0:01:25]}  Rg8 {[%clk 0:01:09]} 25. Be1 {[%clk 0:00:56]}  Bb4 {[%clk 0:00:59]} 26. Bf2 {[%clk 0:00:51]}  Bd6 {[%clk 0:00:59]} 27. Rhg1 {[%clk 0:00:50]}  Rcc8 {[%clk 0:00:59]} 28. f6 {[%clk 0:00:44]}  Rcf8 {[%clk 0:00:40]} 29. Bh7 {[%clk 0:00:32]}  Rh8 {[%clk 0:00:40]} 30. Rg7 {[%clk 0:00:30]}  e5 {[%clk 0:00:23]} 31. Bf5+ {[%clk 0:00:28]}  Kc7 {[%clk 0:00:23]} 32. Be6 {[%clk 0:00:28]}  exd4 {[%clk 0:00:16]} 33. exd4 {[%clk 0:00:28]}  Kb6 {[%clk 0:00:11]} 34. Bxd5 {[%clk 0:00:25]}  Nb4 {[%clk 0:00:08]} 35. Bxf7 {[%clk 0:00:21]}  Nd3 {[%clk 0:00:08]} 36. Be3 {[%clk 0:00:21]}  Nxb2 {[%clk 0:00:03]} 37. Ke2 {[%clk 0:00:20]}  Rc8 {[%clk 0:00:02]} 38. Bd5 {[%clk 0:00:17]}  Rc2+ {[%clk 0:00:01]} 39. Kf3 {[%clk 0:00:17]}  Re8 {[%clk 0:00:00]} 40. Rxb7+ {[%clk 0:00:17]} 1-0